[Event "Titled Tuesday Blitz April 26 Early 2022"]
[White "Karolczuk, Iwo"]
[Black "Vokhidov, Shamsiddin"]
[WhiteFideId "21816972"]
[BlackFideId "14204223"]
[WhiteElo "2277"]
[BlackElo "2611"]
[Result "1-0"]
[Round "02"]
[TimeControl "180+1"]
[Date "2022.04.26"]
[WhiteClock "0:00:03"]
[BlackClock "0:00:12"]

1. d4 {[%clk 0:03:00]}  Nf6 {[%clk 0:03:00]} 2. c4 {[%clk 0:03:00]}  e6 {[%clk 0:03:00]} 3. g3 {[%clk 0:03:00]}  c5 {[%clk 0:03:00]} 4. d5 {[%clk 0:03:00]}  exd5 {[%clk 0:03:01]} 5. cxd5 {[%clk 0:03:00]}  d6 {[%clk 0:03:01]} 6. Nc3 {[%clk 0:03:01]}  g6 {[%clk 0:03:02]} 7. Bg2 {[%clk 0:03:01]}  Bg7 {[%clk 0:03:03]} 8. Nf3 {[%clk 0:03:02]}  O-O {[%clk 0:03:04]} 9. O-O {[%clk 0:03:03]}  Re8 {[%clk 0:03:05]} 10. Re1 {[%clk 0:03:03]}  a6 {[%clk 0:03:00]} 11. a4 {[%clk 0:03:02]}  Bg4 {[%clk 0:02:56]} 12. Nd2 {[%clk 0:03:00]}  Nbd7 {[%clk 0:02:41]} 13. h3 {[%clk 0:02:57]}  Bh5 {[%clk 0:02:42]} 14. Nc4 {[%clk 0:02:01]}  Ne5 {[%clk 0:02:39]} 15. Nxe5 {[%clk 0:02:00]}  Rxe5 {[%clk 0:02:40]} 16. Qb3 {[%clk 0:01:57]}  Qd7 {[%clk 0:02:38]} 17. Bf4 {[%clk 0:01:52]}  Re7 {[%clk 0:02:37]} 18. e4 {[%clk 0:01:49]}  h6 {[%clk 0:02:34]} 19. g4 {[%clk 0:01:44]}  g5 {[%clk 0:02:32]} 20. e5 {[%clk 0:01:32]}  dxe5 {[%clk 0:02:15]} 21. Bxe5 {[%clk 0:01:31]}  Bg6 {[%clk 0:02:02]} 22. d6 {[%clk 0:01:28]}  Rxe5 {[%clk 0:01:51]} 23. Rxe5 {[%clk 0:01:26]}  Nxg4 {[%clk 0:01:52]} 24. Re2 {[%clk 0:01:08]}  Ne5 {[%clk 0:01:39]} 25. Qxb7 {[%clk 0:01:06]}  Rd8 {[%clk 0:01:33]} 26. Qxd7 {[%clk 0:00:55]}  Rxd7 {[%clk 0:01:34]} 27. Rd1 {[%clk 0:00:56]}  Nd3 {[%clk 0:01:34]} 28. Nd5 {[%clk 0:00:49]}  Kf8 {[%clk 0:01:00]} 29. Ne7 {[%clk 0:00:48]}  Bh7 {[%clk 0:00:59]} 30. Be4 {[%clk 0:00:24]}  Nf4 {[%clk 0:00:28]} 31. Ree1 {[%clk 0:00:17]}  Bxe4 {[%clk 0:00:19]} 32. Rxe4 {[%clk 0:00:18]}  Bd4 {[%clk 0:00:19]} 33. Nf5 {[%clk 0:00:16]}  Nxh3+ {[%clk 0:00:19]} 34. Kg2 {[%clk 0:00:10]}  Nxf2 {[%clk 0:00:20]} 35. Rexd4 {[%clk 0:00:04]}  Nxd1 {[%clk 0:00:17]} 36. Rxd1 {[%clk 0:00:05]}  f6 {[%clk 0:00:18]} 37. Rc1 {[%clk 0:00:05]}  Kf7 {[%clk 0:00:17]} 38. Rxc5 {[%clk 0:00:05]}  Ke6 {[%clk 0:00:18]} 39. Ra5 {[%clk 0:00:05]}  h5 {[%clk 0:00:17]} 40. b4 {[%clk 0:00:05]}  Rb7 {[%clk 0:00:17]} 41. Nd4+ {[%clk 0:00:03]}  Kxd6 {[%clk 0:00:17]} 42. Rxa6+ {[%clk 0:00:04]}  Kd5 {[%clk 0:00:16]} 43. Nb5 {[%clk 0:00:04]}  f5 {[%clk 0:00:16]} 44. Rg6 {[%clk 0:00:04]}  g4 {[%clk 0:00:16]} 45. Rg5 {[%clk 0:00:04]}  Ke5 {[%clk 0:00:16]} 46. Rxf5+ {[%clk 0:00:04]}  Ke4 {[%clk 0:00:12]} 47. Nd6+ {[%clk 0:00:03]} 1-0


[Site "https://www.chess.com"]

[Event "Titled Tuesday Blitz April 26 Early 2022"]
[White "Kim, Sergey"]
[Black "Lauridsen, Jesper Morch"]
[WhiteFideId "13700570"]
[BlackFideId "1401890"]
[WhiteElo "2546"]
[BlackElo "2288"]
[Result "1-0"]
[Round "02"]
[TimeControl "180+1"]
[Date "2022.04.26"]
[WhiteClock "0:01:27"]
[BlackClock "0:00:10"]

1. d4 {[%clk 0:02:53]}  d5 {[%clk 0:02:59]} 2. c4 {[%clk 0:02:53]}  e6 {[%clk 0:03:00]} 3. Nc3 {[%clk 0:02:53]}  c5 {[%clk 0:03:00]} 4. e3 {[%clk 0:02:53]}  Nf6 {[%clk 0:02:59]} 5. Nf3 {[%clk 0:02:53]}  a6 {[%clk 0:02:58]} 6. a3 {[%clk 0:02:53]}  Nc6 {[%clk 0:02:56]} 7. Bd3 {[%clk 0:02:54]}  dxc4 {[%clk 0:02:56]} 8. Bxc4 {[%clk 0:02:54]}  b5 {[%clk 0:02:56]} 9. Ba2 {[%clk 0:02:54]}  Bb7 {[%clk 0:02:56]} 10. O-O {[%clk 0:02:54]}  Qc7 {[%clk 0:02:53]} 11. d5 {[%clk 0:02:43]}  exd5 {[%clk 0:02:52]} 12. Nxd5 {[%clk 0:02:43]}  Nxd5 {[%clk 0:02:52]} 13. Bxd5 {[%clk 0:02:44]}  Rd8 {[%clk 0:02:39]} 14. e4 {[%clk 0:02:44]}  Bd6 {[%clk 0:02:31]} 15. Ng5 {[%clk 0:02:36]}  Nd4 {[%clk 0:02:09]} 16. Bxf7+ {[%clk 0:02:31]}  Kf8 {[%clk 0:02:00]} 17. Qh5 {[%clk 0:02:18]}  h6 {[%clk 0:01:27]} 18. Bd5 {[%clk 0:02:11]}  Bxh2+ {[%clk 0:01:03]} 19. Kh1 {[%clk 0:02:10]}  Bxd5 {[%clk 0:00:57]} 20. exd5 {[%clk 0:02:10]}  Rxd5 {[%clk 0:00:45]} 21. Ne6+ {[%clk 0:02:08]}  Nxe6 {[%clk 0:00:34]} 22. Qxd5 {[%clk 0:02:08]}  Ng5 {[%clk 0:00:21]} 23. Be3 {[%clk 0:01:54]}  Bd6 {[%clk 0:00:18]} 24. Qa8+ {[%clk 0:01:52]}  Kf7 {[%clk 0:00:15]} 25. Qxh8 {[%clk 0:01:51]}  Qe7 {[%clk 0:00:13]} 26. Qc8 {[%clk 0:01:43]}  Ne6 {[%clk 0:00:12]} 27. g3 {[%clk 0:01:40]}  Kg6 {[%clk 0:00:11]} 28. Qc6 {[%clk 0:01:35]}  Nd4 {[%clk 0:00:11]} 29. Bxd4 {[%clk 0:01:32]}  cxd4 {[%clk 0:00:11]} 30. Rae1 {[%clk 0:01:29]}  Qf6 {[%clk 0:00:11]} 31. Qe4+ {[%clk 0:01:28]}  Kg5 {[%clk 0:00:10]} 32. Kg2 {[%clk 0:01:27]} 1-0


[Site "https://www.chess.com"]

[Event "Titled Tuesday Blitz April 26 Early 2022"]
[White "Kotepalli, Sai Nirupama"]
[Black "Maksimenko, Viktor"]
[WhiteFideId "5039444"]
[BlackFideId "13710478"]
[WhiteElo "2388"]
[BlackElo "2269"]
[Result "0-1"]
[Round "02"]
[TimeControl "180+1"]
[Date "2022.04.26"]
[WhiteClock "0:00:04"]
[BlackClock "0:00:17"]

1. e4 {[%clk 0:02:39]}  c6 {[%clk 0:02:59]} 2. d3 {[%clk 0:02:37]}  d5 {[%clk 0:03:00]} 3. Nd2 {[%clk 0:02:37]}  e5 {[%clk 0:03:00]} 4. Ngf3 {[%clk 0:02:36]}  dxe4 {[%clk 0:03:00]} 5. dxe4 {[%clk 0:02:36]}  Qc7 {[%clk 0:03:00]} 6. Bd3 {[%clk 0:02:34]}  Nd7 {[%clk 0:02:59]} 7. O-O {[%clk 0:02:32]}  Ngf6 {[%clk 0:03:00]} 8. Qe2 {[%clk 0:02:30]}  Be7 {[%clk 0:03:00]} 9. Nc4 {[%clk 0:02:28]}  O-O {[%clk 0:02:59]} 10. c3 {[%clk 0:02:18]}  b5 {[%clk 0:02:55]} 11. Ne3 {[%clk 0:02:17]}  Nc5 {[%clk 0:02:55]} 12. Bc2 {[%clk 0:02:02]}  Ncxe4 {[%clk 0:02:42]} 13. Nd1 {[%clk 0:01:54]}  Bf5 {[%clk 0:01:51]} 14. Nh4 {[%clk 0:01:53]}  Be6 {[%clk 0:01:50]} 15. Nf3 {[%clk 0:01:35]}  Bc4 {[%clk 0:01:34]} 16. Bd3 {[%clk 0:01:25]}  Bxd3 {[%clk 0:01:34]} 17. Qxd3 {[%clk 0:01:26]}  Rad8 {[%clk 0:01:34]} 18. Qe2 {[%clk 0:01:25]}  Rfe8 {[%clk 0:01:28]} 19. Nh4 {[%clk 0:01:10]}  Bf8 {[%clk 0:01:24]} 20. Ne3 {[%clk 0:01:07]}  Nc5 {[%clk 0:01:08]} 21. Nf3 {[%clk 0:01:02]}  Ne6 {[%clk 0:01:03]} 22. Nf5 {[%clk 0:01:00]}  e4 {[%clk 0:00:59]} 23. Ne1 {[%clk 0:00:45]}  Qe5 {[%clk 0:00:54]} 24. Ng3 {[%clk 0:00:42]}  h5 {[%clk 0:00:52]} 25. Nf3 {[%clk 0:00:37]}  Qd5 {[%clk 0:00:42]} 26. Nh4 {[%clk 0:00:31]}  g6 {[%clk 0:00:39]} 27. Re1 {[%clk 0:00:25]}  Qd3 {[%clk 0:00:37]} 28. Be3 {[%clk 0:00:14]}  a6 {[%clk 0:00:36]} 29. Bb6 {[%clk 0:00:12]}  Qxe2 {[%clk 0:00:28]} 30. Rxe2 {[%clk 0:00:11]}  Rb8 {[%clk 0:00:29]} 31. Bd4 {[%clk 0:00:09]}  Nxd4 {[%clk 0:00:29]} 32. cxd4 {[%clk 0:00:10]}  Bh6 {[%clk 0:00:22]} 33. Rae1 {[%clk 0:00:09]}  Bg5 {[%clk 0:00:22]} 34. Nxe4 {[%clk 0:00:07]}  Nxe4 {[%clk 0:00:21]} 35. Rxe4 {[%clk 0:00:08]}  Rxe4 {[%clk 0:00:21]} 36. Rxe4 {[%clk 0:00:09]}  f5 {[%clk 0:00:21]} 37. Nxf5 {[%clk 0:00:08]}  gxf5 {[%clk 0:00:21]} 38. Re6 {[%clk 0:00:08]}  Rd8 {[%clk 0:00:21]} 39. Rg6+ {[%clk 0:00:07]}  Kf7 {[%clk 0:00:20]} 40. Rxg5 {[%clk 0:00:08]}  Rxd4 {[%clk 0:00:20]} 41. h3 {[%clk 0:00:06]}  Rd1+ {[%clk 0:00:20]} 42. Kh2 {[%clk 0:00:06]}  Rd2 {[%clk 0:00:21]} 43. Rxf5+ {[%clk 0:00:06]}  Ke6 {[%clk 0:00:21]} 44. Rxh5 {[%clk 0:00:05]}  Rxb2 {[%clk 0:00:22]} 45. Rh6+ {[%clk 0:00:05]}  Kd5 {[%clk 0:00:22]} 46. Rh5+ {[%clk 0:00:05]}  Kd6 {[%clk 0:00:21]} 47. a3 {[%clk 0:00:05]}  Rxf2 {[%clk 0:00:19]} 48. a4 {[%clk 0:00:04]}  b4 {[%clk 0:00:18]} 49. Ra5 {[%clk 0:00:05]}  b3 {[%clk 0:00:17]} 50. Rxa6 {[%clk 0:00:04]}  Kc7 {[%clk 0:00:17]} 0-1


[Site "https://www.chess.com"]

[Event "Titled Tuesday Blitz April 26 Early 2022"]
[White "Kozak, Adam"]
[Black "Goltsev, Dmitry"]
[WhiteFideId "753246"]
[BlackFideId "24176710"]
[WhiteElo "2459"]
[BlackElo "2273"]
[Result "1-0"]
[Round "02"]
[TimeControl "180+1"]
[Date "2022.04.26"]
[WhiteClock "0:01:04"]
[BlackClock "0:00:10"]

1. Nf3 {[%clk 0:03:00]}  d5 {[%clk 0:03:00]} 2. c4 {[%clk 0:02:59]}  c6 {[%clk 0:02:59]} 3. e3 {[%clk 0:02:59]}  Nf6 {[%clk 0:03:00]} 4. Nc3 {[%clk 0:02:59]}  e6 {[%clk 0:03:00]} 5. b3 {[%clk 0:02:56]}  Nbd7 {[%clk 0:03:00]} 6. Qc2 {[%clk 0:02:56]}  Bd6 {[%clk 0:03:01]} 7. Bb2 {[%clk 0:02:56]}  Qe7 {[%clk 0:03:01]} 8. Be2 {[%clk 0:02:56]}  e5 {[%clk 0:03:01]} 9. cxd5 {[%clk 0:02:56]}  Nxd5 {[%clk 0:02:57]} 10. Ne4 {[%clk 0:02:55]}  Bc7 {[%clk 0:02:55]} 11. Ng3 {[%clk 0:02:55]}  g6 {[%clk 0:02:50]} 12. a3 {[%clk 0:02:51]}  O-O {[%clk 0:02:48]} 13. O-O {[%clk 0:02:51]}  f6 {[%clk 0:02:45]} 14. d4 {[%clk 0:02:50]}  f5 {[%clk 0:02:38]} 15. dxe5 {[%clk 0:02:48]}  Nxe5 {[%clk 0:02:39]} 16. Nxe5 {[%clk 0:02:48]}  Bxe5 {[%clk 0:02:39]} 17. Bc4 {[%clk 0:02:48]}  Bxb2 {[%clk 0:02:34]} 18. Bxd5+ {[%clk 0:02:47]}  cxd5 {[%clk 0:02:35]} 19. Qxb2 {[%clk 0:02:47]}  Be6 {[%clk 0:02:35]} 20. Ne2 {[%clk 0:02:47]}  Rac8 {[%clk 0:02:32]} 21. Nd4 {[%clk 0:02:46]}  Bf7 {[%clk 0:02:29]} 22. Qd2 {[%clk 0:02:45]}  a6 {[%clk 0:02:17]} 23. a4 {[%clk 0:02:44]}  Rc7 {[%clk 0:02:16]} 24. a5 {[%clk 0:02:44]}  Rfc8 {[%clk 0:02:12]} 25. g3 {[%clk 0:02:31]}  Qe4 {[%clk 0:02:00]} 26. Rfc1 {[%clk 0:02:29]}  h5 {[%clk 0:01:53]} 27. h4 {[%clk 0:02:28]}  Qe5 {[%clk 0:01:43]} 28. Rxc7 {[%clk 0:02:17]}  Rxc7 {[%clk 0:01:44]} 29. Rc1 {[%clk 0:02:16]}  Kh7 {[%clk 0:01:39]} 30. Rc3 {[%clk 0:02:14]}  Re7 {[%clk 0:01:20]} 31. Qc1 {[%clk 0:02:11]}  Qf6 {[%clk 0:01:16]} 32. Rc7 {[%clk 0:02:07]}  Qd6 {[%clk 0:01:13]} 33. Rc8 {[%clk 0:02:07]}  Re8 {[%clk 0:00:47]} 34. Rxe8 {[%clk 0:02:05]}  Bxe8 {[%clk 0:00:48]} 35. Qc8 {[%clk 0:02:05]}  Qd7 {[%clk 0:00:41]} 36. Qxd7+ {[%clk 0:02:04]}  Bxd7 {[%clk 0:00:42]} 37. Kg2 {[%clk 0:02:04]}  Kg7 {[%clk 0:00:42]} 38. Kf3 {[%clk 0:02:05]}  Kf6 {[%clk 0:00:43]} 39. Kf4 {[%clk 0:02:06]}  Be8 {[%clk 0:00:41]} 40. Nf3 {[%clk 0:01:57]}  Bd7 {[%clk 0:00:37]} 41. Nd4 {[%clk 0:01:47]}  Be8 {[%clk 0:00:36]} 42. Kf3 {[%clk 0:01:48]}  Ke5 {[%clk 0:00:35]} 43. Ke2 {[%clk 0:01:48]}  Ke4 {[%clk 0:00:29]} 44. Kd2 {[%clk 0:01:46]}  Ke5 {[%clk 0:00:25]} 45. Kc3 {[%clk 0:01:44]}  Bd7 {[%clk 0:00:24]} 46. Kb4 {[%clk 0:01:35]}  Kd6 {[%clk 0:00:23]} 47. Ne2 {[%clk 0:01:32]}  Be6 {[%clk 0:00:22]} 48. Nf4 {[%clk 0:01:32]}  Bf7 {[%clk 0:00:22]} 49. Nd3 {[%clk 0:01:32]}  Be8 {[%clk 0:00:22]} 50. Kc3 {[%clk 0:01:29]}  Bf7 {[%clk 0:00:20]} 51. Kd4 {[%clk 0:01:29]}  Be6 {[%clk 0:00:17]} 52. Nc5 {[%clk 0:01:22]}  Bc8 {[%clk 0:00:15]} 53. b4 {[%clk 0:01:22]}  Kc6 {[%clk 0:00:15]} 54. Nd3 {[%clk 0:01:18]}  Kd6 {[%clk 0:00:13]} 55. Nf4 {[%clk 0:01:18]}  Kc6 {[%clk 0:00:12]} 56. Nxg6 {[%clk 0:01:18]}  Be6 {[%clk 0:00:13]} 57. Nf4 {[%clk 0:01:08]}  Bf7 {[%clk 0:00:13]} 58. Kc3 {[%clk 0:01:06]}  Kb5 {[%clk 0:00:13]} 59. Ne2 {[%clk 0:01:07]}  Bg6 {[%clk 0:00:10]} 60. Nd4+ {[%clk 0:01:07]}  Ka4 {[%clk 0:00:11]} 61. Ne6 {[%clk 0:01:05]}  Be8 {[%clk 0:00:10]} 62. Nc5+ {[%clk 0:01:04]} 1-0


[Site "https://www.chess.com"]

[Event "Titled Tuesday Blitz April 26 Early 2022"]
[White "Lach, Aleksandra"]
[Black "Vakhlamov, Igor L."]
[WhiteFideId "1134299"]
[BlackFideId "24126748"]
[WhiteElo "2172"]
[BlackElo "2401"]
[Result "1-0"]
[Round "02"]
[TimeControl "180+1"]
[Date "2022.04.26"]
[WhiteClock "0:00:15"]
[BlackClock "0:00:16"]

1. e4 {[%clk 0:03:00]}  c5 {[%clk 0:02:57]} 2. Nc3 {[%clk 0:03:00]}  Nc6 {[%clk 0:02:57]} 3. Bb5 {[%clk 0:03:00]}  Nd4 {[%clk 0:02:56]} 4. Nf3 {[%clk 0:03:00]}  e6 {[%clk 0:02:54]} 5. O-O {[%clk 0:02:59]}  a6 {[%clk 0:02:53]} 6. Bd3 {[%clk 0:02:59]}  Nxf3+ {[%clk 0:02:52]} 7. Qxf3 {[%clk 0:02:59]}  Bd6 {[%clk 0:02:52]} 8. Qe3 {[%clk 0:02:55]}  Qc7 {[%clk 0:02:46]} 9. f4 {[%clk 0:02:55]}  c4 {[%clk 0:02:45]} 10. Qg3 {[%clk 0:02:55]}  Ne7 {[%clk 0:02:13]} 11. Be2 {[%clk 0:02:52]}  Ng6 {[%clk 0:02:09]} 12. d4 {[%clk 0:02:46]}  cxd3 {[%clk 0:02:10]} 13. Bxd3 {[%clk 0:02:37]}  b5 {[%clk 0:02:06]} 14. e5 {[%clk 0:02:28]}  Bc5+ {[%clk 0:01:59]} 15. Be3 {[%clk 0:02:27]}  Bb7 {[%clk 0:01:57]} 16. Ne4 {[%clk 0:02:22]}  Be7 {[%clk 0:01:54]} 17. Ng5 {[%clk 0:01:56]}  d6 {[%clk 0:01:19]} 18. Nxh7 {[%clk 0:01:14]}  Nh4 {[%clk 0:00:51]} 19. Rf2 {[%clk 0:01:06]}  O-O-O {[%clk 0:00:49]} 20. Ng5 {[%clk 0:01:04]}  Bxg5 {[%clk 0:00:28]} 21. Qxg5 {[%clk 0:01:00]}  f6 {[%clk 0:00:23]} 22. exf6 {[%clk 0:00:36]}  gxf6 {[%clk 0:00:24]} 23. Qxf6 {[%clk 0:00:37]}  Rdg8 {[%clk 0:00:21]} 24. Be4 {[%clk 0:00:27]}  Bxe4 {[%clk 0:00:08]} 25. Qxe6+ {[%clk 0:00:27]}  Kb8 {[%clk 0:00:08]} 26. Qxe4 {[%clk 0:00:27]}  Re8 {[%clk 0:00:07]} 27. Qd3 {[%clk 0:00:26]}  Rhg8 {[%clk 0:00:07]} 28. g3 {[%clk 0:00:26]}  Ng6 {[%clk 0:00:06]} 29. Rd1 {[%clk 0:00:24]}  Rd8 {[%clk 0:00:03]} 30. Bd4 {[%clk 0:00:22]}  Ne7 {[%clk 0:00:03]} 31. f5 {[%clk 0:00:22]}  Nc6 {[%clk 0:00:03]} 32. f6 {[%clk 0:00:22]}  Ne5 {[%clk 0:00:03]} 33. Bxe5 {[%clk 0:00:22]}  dxe5 {[%clk 0:00:04]} 34. Qe2 {[%clk 0:00:22]}  Rdf8 {[%clk 0:00:04]} 35. Rdf1 {[%clk 0:00:21]}  Rf7 {[%clk 0:00:04]} 36. c3 {[%clk 0:00:21]}  Re8 {[%clk 0:00:04]} 37. Qe4 {[%clk 0:00:20]}  Re6 {[%clk 0:00:04]} 38. Qd5 {[%clk 0:00:20]}  Qb6 {[%clk 0:00:04]} 39. Kg2 {[%clk 0:00:18]}  e4 {[%clk 0:00:04]} 40. Qh5 {[%clk 0:00:15]}  Qb7 {[%clk 0:00:02]} 41. Qh8+ {[%clk 0:00:14]}  Ka7 {[%clk 0:00:02]} 42. Kg1 {[%clk 0:00:11]}  e3 {[%clk 0:00:03]} 43. Re2 {[%clk 0:00:12]}  Qe4 {[%clk 0:00:03]} 44. Qh4 {[%clk 0:00:11]}  Qe5 {[%clk 0:00:02]} 45. Qf4 {[%clk 0:00:11]}  Qd5 {[%clk 0:00:03]} 46. Rxe3 {[%clk 0:00:10]}  Rexf6 {[%clk 0:00:03]} 47. Re7+ {[%clk 0:00:08]}  Rxe7 {[%clk 0:00:03]} 48. Qxf6 {[%clk 0:00:08]}  Rd7 {[%clk 0:00:04]} 49. Qf2+ {[%clk 0:00:08]}  Kb8 {[%clk 0:00:04]} 50. h4 {[%clk 0:00:09]}  Qd6 {[%clk 0:00:04]} 51. Qf4 {[%clk 0:00:09]}  Kc7 {[%clk 0:00:04]} 52. Qxd6+ {[%clk 0:00:09]}  Rxd6 {[%clk 0:00:05]} 53. g4 {[%clk 0:00:10]}  Rd3 {[%clk 0:00:05]} 54. Rf4 {[%clk 0:00:10]}  Kd6 {[%clk 0:00:05]} 55. h5 {[%clk 0:00:10]}  Ke5 {[%clk 0:00:06]} 56. Rf5+ {[%clk 0:00:10]}  Ke4 {[%clk 0:00:06]} 57. Kf2 {[%clk 0:00:11]}  Rh3 {[%clk 0:00:07]} 58. Rf7 {[%clk 0:00:10]}  Rh1 {[%clk 0:00:06]} 59. Kg3 {[%clk 0:00:11]}  Rg1+ {[%clk 0:00:06]} 60. Kh4 {[%clk 0:00:11]}  Ke5 {[%clk 0:00:06]} 61. Re7+ {[%clk 0:00:11]}  Kf6 {[%clk 0:00:07]} 62. Re2 {[%clk 0:00:11]}  Rh1+ {[%clk 0:00:07]} 63. Kg3 {[%clk 0:00:12]}  Rg1+ {[%clk 0:00:08]} 64. Rg2 {[%clk 0:00:12]}  Rb1 {[%clk 0:00:09]} 65. Kh4 {[%clk 0:00:12]}  Rh1+ {[%clk 0:00:09]} 66. Kg3 {[%clk 0:00:12]}  Kg5 {[%clk 0:00:09]} 67. Rf2 {[%clk 0:00:12]}  Rg1+ {[%clk 0:00:10]} 68. Kh3 {[%clk 0:00:13]}  Rh1+ {[%clk 0:00:10]} 69. Kg3 {[%clk 0:00:13]}  Rg1+ {[%clk 0:00:10]} 70. Rg2 {[%clk 0:00:13]}  Rh1 {[%clk 0:00:10]} 71. Rh2 {[%clk 0:00:12]}  Rg1+ {[%clk 0:00:11]} 72. Kf3 {[%clk 0:00:13]}  Rf1+ {[%clk 0:00:11]} 73. Ke4 {[%clk 0:00:13]}  Re1+ {[%clk 0:00:10]} 74. Kd5 {[%clk 0:00:13]}  Re7 {[%clk 0:00:09]} 75. h6 {[%clk 0:00:13]}  Rh7 {[%clk 0:00:10]} 76. Kc6 {[%clk 0:00:13]}  Kxg4 {[%clk 0:00:11]} 77. Kb6 {[%clk 0:00:13]}  Kg3 {[%clk 0:00:12]} 78. Rh1 {[%clk 0:00:13]}  Kg2 {[%clk 0:00:12]} 79. Rh5 {[%clk 0:00:13]}  Kg3 {[%clk 0:00:13]} 80. Kxa6 {[%clk 0:00:13]}  Kg4 {[%clk 0:00:13]} 81. Rxb5 {[%clk 0:00:13]}  Rxh6+ {[%clk 0:00:13]} 82. Rb6 {[%clk 0:00:14]}  Rh2 {[%clk 0:00:13]} 83. a4 {[%clk 0:00:14]}  Kf5 {[%clk 0:00:14]} 84. b4 {[%clk 0:00:14]}  Ke5 {[%clk 0:00:14]} 85. c4 {[%clk 0:00:14]}  Kd4 {[%clk 0:00:14]} 86. c5 {[%clk 0:00:15]}  Ra2 {[%clk 0:00:14]} 87. Ka5 {[%clk 0:00:15]}  Kd5 {[%clk 0:00:14]} 88. Rd6+ {[%clk 0:00:15]}  Ke5 {[%clk 0:00:15]} 89. Rd3 {[%clk 0:00:15]}  Rc2 {[%clk 0:00:14]} 90. Kb5 {[%clk 0:00:14]}  Rc3 {[%clk 0:00:13]} 91. Rxc3 {[%clk 0:00:14]}  Kd4 {[%clk 0:00:13]} 92. Rc1 {[%clk 0:00:14]}  Kd3 {[%clk 0:00:10]} 93. c6 {[%clk 0:00:14]}  Kd2 {[%clk 0:00:11]} 94. c7 {[%clk 0:00:14]}  Kxc1 {[%clk 0:00:11]} 95. c8=Q+ {[%clk 0:00:15]}  Kb2 {[%clk 0:00:12]} 96. Qe6 {[%clk 0:00:14]}  Ka3 {[%clk 0:00:12]} 97. Qe3+ {[%clk 0:00:14]}  Kb2 {[%clk 0:00:13]} 98. a5 {[%clk 0:00:15]}  Ka1 {[%clk 0:00:13]} 99. a6 {[%clk 0:00:16]}  Kb2 {[%clk 0:00:14]} 100. a7 {[%clk 0:00:16]}  Kb1 {[%clk 0:00:15]} 101. Qf2 {[%clk 0:00:15]}  Kc1 {[%clk 0:00:15]} 102. a8=Q {[%clk 0:00:14]}  Kb1 {[%clk 0:00:16]} 103. Qaa2+ {[%clk 0:00:14]}  Kc1 {[%clk 0:00:16]} 104. Qa1# {[%clk 0:00:15]} 1-0


[Site "https://www.chess.com"]

[Event "Titled Tuesday Blitz April 26 Early 2022"]
[White "Li, Ben"]
[Black "Kaminski, Victor"]
[WhiteFideId "2089980"]
[BlackFideId "1131630"]
[WhiteElo "2267"]
[BlackElo "2181"]
[Result "1-0"]
[Round "02"]
[TimeControl "180+1"]
[Date "2022.04.26"]
[WhiteClock "0:00:13"]
[BlackClock "0:00:01"]

1. d4 {[%clk 0:03:00]}  Nf6 {[%clk 0:02:58]} 2. c4 {[%clk 0:03:00]}  c5 {[%clk 0:02:58]} 3. d5 {[%clk 0:03:00]}  b5 {[%clk 0:02:58]} 4. cxb5 {[%clk 0:03:01]}  a6 {[%clk 0:02:58]} 5. e3 {[%clk 0:03:02]}  e6 {[%clk 0:02:58]} 6. Nc3 {[%clk 0:03:00]}  exd5 {[%clk 0:02:57]} 7. Nxd5 {[%clk 0:03:01]}  Be7 {[%clk 0:02:58]} 8. Nxf6+ {[%clk 0:01:44]}  Bxf6 {[%clk 0:02:56]} 9. Qd5 {[%clk 0:01:45]}  Ra7 {[%clk 0:02:52]} 10. Qxc5 {[%clk 0:01:44]}  Rc7 {[%clk 0:02:50]} 11. Qb4 {[%clk 0:01:43]}  axb5 {[%clk 0:02:26]} 12. Bxb5 {[%clk 0:01:44]}  Na6 {[%clk 0:02:26]} 13. Qe4+ {[%clk 0:01:34]}  Kf8 {[%clk 0:02:26]} 14. Nf3 {[%clk 0:01:33]}  Bb7 {[%clk 0:02:16]} 15. Qa4 {[%clk 0:01:11]}  Nc5 {[%clk 0:02:09]} 16. Qa3 {[%clk 0:01:10]}  g5 {[%clk 0:01:40]} 17. O-O {[%clk 0:01:04]}  g4 {[%clk 0:01:38]} 18. Nd4 {[%clk 0:01:04]}  Be5 {[%clk 0:01:28]} 19. Rd1 {[%clk 0:01:01]}  Qh4 {[%clk 0:01:25]} 20. g3 {[%clk 0:00:58]}  Qf6 {[%clk 0:01:11]} 21. Be2 {[%clk 0:00:26]}  h5 {[%clk 0:00:50]} 22. b4 {[%clk 0:00:25]}  Ne4 {[%clk 0:00:49]} 23. Rf1 {[%clk 0:00:24]}  Ng5 {[%clk 0:00:48]} 24. h4 {[%clk 0:00:20]}  gxh3 {[%clk 0:00:40]} 25. f4 {[%clk 0:00:20]}  h2+ {[%clk 0:00:27]} 26. Kxh2 {[%clk 0:00:19]}  Bxd4 {[%clk 0:00:13]} 27. fxg5 {[%clk 0:00:19]}  Qc6 {[%clk 0:00:12]} 28. b5+ {[%clk 0:00:19]}  Qc5 {[%clk 0:00:11]} 29. exd4 {[%clk 0:00:19]}  Qxa3 {[%clk 0:00:10]} 30. Bxa3+ {[%clk 0:00:20]}  Kg7 {[%clk 0:00:09]} 31. Rac1 {[%clk 0:00:21]}  Rxc1 {[%clk 0:00:09]} 32. Rxc1 {[%clk 0:00:21]}  Re8 {[%clk 0:00:09]} 33. Bxh5 {[%clk 0:00:20]}  Ra8 {[%clk 0:00:09]} 34. Be7 {[%clk 0:00:19]}  Rxa2+ {[%clk 0:00:09]} 35. Kh3 {[%clk 0:00:20]}  Bg2+ {[%clk 0:00:08]} 36. Kh4 {[%clk 0:00:19]}  Be4 {[%clk 0:00:06]} 37. Bf6+ {[%clk 0:00:19]}  Kh7 {[%clk 0:00:05]} 38. Bxf7 {[%clk 0:00:19]}  Bf3 {[%clk 0:00:04]} 39. g4 {[%clk 0:00:17]}  Rg2 {[%clk 0:00:03]} 40. Kh3 {[%clk 0:00:16]}  Re2 {[%clk 0:00:02]} 41. Kg3 {[%clk 0:00:16]}  Be4 {[%clk 0:00:02]} 42. Rc8 {[%clk 0:00:14]}  Bd5 {[%clk 0:00:01]} 43. Rh8# {[%clk 0:00:13]} 1-0


[Site "https://www.chess.com"]

[Event "Titled Tuesday Blitz April 26 Early 2022"]
[White "Maksimovic, Bojan"]
[Black "Dudzinski, Pawel"]
[WhiteFideId "14408120"]
[BlackFideId "1117890"]
[WhiteElo "2448"]
[BlackElo "2033"]
[Result "1-0"]
[Round "02"]
[TimeControl "180+1"]
[Date "2022.04.26"]
[WhiteClock "0:02:16"]
[BlackClock "0:00:30"]

1. e4 {[%clk 0:03:00]}  c6 {[%clk 0:02:56]} 2. d4 {[%clk 0:02:59]}  d5 {[%clk 0:02:57]} 3. Nc3 {[%clk 0:02:59]}  dxe4 {[%clk 0:02:56]} 4. Nxe4 {[%clk 0:02:59]}  Nf6 {[%clk 0:02:57]} 5. Nxf6+ {[%clk 0:03:00]}  exf6 {[%clk 0:02:58]} 6. c3 {[%clk 0:03:00]}  Bd6 {[%clk 0:02:58]} 7. Bd3 {[%clk 0:03:01]}  O-O {[%clk 0:02:59]} 8. Qc2 {[%clk 0:03:02]}  Re8+ {[%clk 0:02:59]} 9. Ne2 {[%clk 0:03:02]}  h5 {[%clk 0:03:00]} 10. O-O {[%clk 0:03:03]}  h4 {[%clk 0:03:00]} 11. h3 {[%clk 0:03:02]}  Be6 {[%clk 0:02:57]} 12. Bd2 {[%clk 0:03:02]}  Nd7 {[%clk 0:02:58]} 13. Rae1 {[%clk 0:03:02]}  Rc8 {[%clk 0:02:50]} 14. c4 {[%clk 0:03:02]}  Bb8 {[%clk 0:02:49]} 15. f4 {[%clk 0:03:00]}  Qc7 {[%clk 0:02:43]} 16. f5 {[%clk 0:02:55]}  Qh2+ {[%clk 0:02:38]} 17. Kf2 {[%clk 0:02:56]}  Bg3+ {[%clk 0:02:14]} 18. Nxg3 {[%clk 0:02:52]}  hxg3+ {[%clk 0:01:38]} 19. Kf3 {[%clk 0:02:49]}  Bd5+ {[%clk 0:01:21]} 20. cxd5 {[%clk 0:02:40]}  cxd5 {[%clk 0:01:22]} 21. Qd1 {[%clk 0:02:37]}  Ne5+ {[%clk 0:01:23]} 22. dxe5 {[%clk 0:02:37]}  fxe5 {[%clk 0:01:24]} 23. Rh1 {[%clk 0:02:26]}  e4+ {[%clk 0:01:22]} 24. Bxe4 {[%clk 0:02:26]}  dxe4+ {[%clk 0:01:03]} 25. Rxe4 {[%clk 0:02:26]}  Rxe4 {[%clk 0:00:54]} 26. Rxh2 {[%clk 0:02:26]}  Rd4 {[%clk 0:00:54]} 27. Kxg3 {[%clk 0:02:24]}  Rcd8 {[%clk 0:00:51]} 28. Rh1 {[%clk 0:02:23]}  Rd3+ {[%clk 0:00:45]} 29. Kh2 {[%clk 0:02:21]}  Rxd2 {[%clk 0:00:46]} 30. Qg4 {[%clk 0:02:22]}  Rxb2 {[%clk 0:00:44]} 31. f6 {[%clk 0:02:22]}  g6 {[%clk 0:00:43]} 32. Qg5 {[%clk 0:02:23]}  Rdd2 {[%clk 0:00:42]} 33. Rg1 {[%clk 0:02:20]}  Kf8 {[%clk 0:00:42]} 34. Qc5+ {[%clk 0:02:19]}  Kg8 {[%clk 0:00:37]} 35. Qc8+ {[%clk 0:02:19]}  Rd8 {[%clk 0:00:29]} 36. Qxd8+ {[%clk 0:02:16]}  Kh7 {[%clk 0:00:30]} 37. Qf8 {[%clk 0:02:16]} 1-0


[Site "https://www.chess.com"]